Cogmind - Beta 12 @@@ ROGUE MODE // 2024.01.09 @ 20:00:09 Player: Dosh Result: Destroyed by G-47 Trooper with Particle Gun Performance ------------- Evolutions (3) 1500 Regions Visited (11) 2200 Robots Destroyed (152) 760 Value Destroyed (4501) 4501 Prototype IDs (28) 560 Alien Tech Used (0) 0 Bonus (1187) 1187 TOTAL SCORE: 10708 Bonus ------- High Alert Combat Kills 211 Follower Combat Kills 630 Entered Garrisons 200 Aligned with FarCom 300 Friendly Fire -154 Cogmind --------- Core Integrity 0/700 Matter 250/300 Energy 95/100 System Corruption 1% Temperature Critical (500) Movement Core (1450) Ox28 Location -7/Lower Caves Parts ------- > --- POWER (1) -------- (None) > --- PROPULSION (4) --- (None) > --- UTILITY (6) ------ Huge Storage Unit Core Analyzer Hacking Suite Hacking Suite > --- WEAPON (2) ------- Gauss Cannon > --- INVENTORY (25) --- Enhanced Nuclear Core Fission Core Advanced Treads Advanced Treads Advanced Heat Sink Coolant Injector Structural Scanner Improved Sensor Array Encrypted Comm Array Transmission Jammer Improved Weapon Shielding Hardened Light Armor Plating Improved Light Armor Plating Improved Shield Generator Makeshift Hacking Suite Makeshift Hacking Suite Improved EM Pulse Cannon Improved EM Pulse Cannon Heavy Phase Cannon Improved Assault Rifle Missile Launcher Great Maul Deploy-a-Sentry Deploy-a-Sentry Peak State ------------ > --- POWER ------------ Reinforced Deuterium Engine > --- PROPULSION ------- Armored Huge Wheel Armored Huge Wheel > --- UTILITY ---------- Huge Storage Unit Core Analyzer Hardened Light Armor Plating Improved Light Armor Plating Hacking Suite Hacking Suite > --- WEAPON ----------- Heavy Phase Cannon Gauss Cannon > --- INVENTORY -------- Enhanced Nuclear Core Fission Core Advanced Treads Advanced Treads Advanced Heat Sink Coolant Injector Structural Scanner Improved Sensor Array Encrypted Comm Array Transmission Jammer Improved Weapon Shielding Hardened Light Armor Plating Improved Light Armor Plating Improved Shield Generator Makeshift Hacking Suite Makeshift Hacking Suite Improved EM Pulse Cannon Improved EM Pulse Cannon Heavy Phase Cannon Improved Assault Rifle Mini Grenade Launcher Missile Launcher Great Maul Deploy-a-Sentry Deploy-a-Sentry [Rating: 55] Favorites ----------- Power Ion Engine Engine Ion Engine Power Core Light Nuclear Core Propulsion Light Treads Treads Light Treads Leg Aluminum Leg Wheel Wheel Utility Huge Storage Unit Device Improved Heat Sink Storage Huge Storage Unit Processor Machine Analyzer Hackware Hacking Suite Protection Improved Light Armor Plating Weapon Improved Assault Rifle Energy Gun Advanced Beam Rifle Energy Cannon Heavy Phase Cannon Ballistic Gun Improved Assault Rifle Ballistic Cannon Improved Light Cannon Launcher Grenade Launcher Impact Weapon Great Maul Build | -11 -10 -10 -9 -9 -9 -8 -8 -8 -7 -7 -7 ------- Run | Jun Mat Min Mat Min Exi Min Mat Gar Fac Low Low Slots Evolved 6 | . . . 2 . . . 2 . 2 . . Power . | . . . . . . . . . . . . Propulsion 2 | . . . . . . . 2 . . . . Utility 4 | . . . 2 . . . . . 2 . . Weapon . | . . . . . . . . . . . . Parts Attached 152 | 6 9 1 36 1 1 2 39 27 21 8 1 Power 16 | 1 2 . 3 . . . 3 2 5 . . Engine 10 | 1 2 . 2 . . . 1 2 2 . . Core 6 | . . . 1 . . . 2 . 3 . . Reactor . | . . . . . . . . . . . . Propulsion 47 | 2 2 . 10 . . 1 15 12 5 . . Treads 30 | 2 2 . 6 . . . 8 9 3 . . Leg 5 | . . . . . . . 5 . . . . Wheel 12 | . . . 4 . . 1 2 3 2 . . Hover . | . . . . . . . . . . . . Flight . | . . . . . . . . . . . . Utility 36 | 1 3 . 7 1 1 . 7 6 6 4 . Device 6 | . 1 . . . . . 4 1 . . . Storage 3 | 1 1 . . . 1 . . . . . . Processor 3 | . 1 . . . . . 1 . . 1 . Hackware 3 | . . . . . . . . 2 1 . . Protection 21 | . . . 7 1 . . 2 3 5 3 . Artifact . | . . . . . . . . . . . . Weapon 53 | 2 2 1 16 . . 1 14 7 5 4 1 Energy Gun 4 | 1 . . . . . . 3 . . . . Energy Cannon 5 | . . . . . . . . 1 4 . . Ballistic Gun 25 | 1 2 1 12 . . . 5 4 . . . Ballistic Cannon 5 | . . . 1 . . . 1 . . 2 1 Launcher 12 | . . . 3 . . 1 3 2 1 2 . Special Weapon . | . . . . . . . . . . . . Impact Weapon 2 | . . . . . . . 2 . . . . Slashing Weapon . | . . . . . . . . . . . . Piercing Weapon . | . . . . . . . . . . . . Special Melee Weapon . | . . . . . . . . . . . . Unidentified Prototypes 3 | . . . 1 . . . 1 . 1 . . Parts Lost 39 | . 2 . 12 1 . . 14 3 . . 7 Power 7 | . . . 1 . . . 3 2 . . 1 Propulsion 13 | . . . 4 . . . 6 1 . . 2 Utility 9 | . . . 3 1 . . 3 . . . 2 Weapon 10 | . 2 . 4 . . . 2 . . . 2 Highest Loss Streak 8 | . 1 . 8 1 . . 3 2 . . 7 To Critical Strikes 1 | . . . . . . . 1 . . . . Average Slot Usage (%) 93 | . 99 100 86 100 100 100 91 99 91 83 74 Engine 7 | . 13 14 9 11 11 11 2 8 2 7 6 Core 1 | . . . 1 . . . 4 . 4 . . Treads 19 | . 28 28 8 22 22 16 19 32 20 . . Leg 1 | . . . . . . . 7 . . . . Wheel 4 | . . . 9 . . 5 4 3 4 15 11 Device 2 | . 1 . . . . . 10 1 . . . Storage 9 | . 14 14 11 11 11 11 9 9 7 7 7 Processor 8 | . 12 14 11 11 11 11 10 7 . . 7 Hackware 4 | . . . . . . . . 3 20 22 15 Protection 11 | . . . 13 22 22 22 4 15 14 15 11 Energy Gun 1 | . 7 . . . . . 4 2 . . . Energy Cannon 2 | . . . . . . . . 4 7 9 6 Ballistic Gun 11 | . 20 28 15 11 11 11 8 10 7 . . Ballistic Cannon 3 | . . . 6 11 11 . 3 . . 4 . Naked Turns . | . . . . . . . . . . . . Heaviest Build 122 | 12 28 27 44 44 104 103 104 99 118 122 114 Greatest Support 82 | 40 40 40 43 43 43 43 65 82 82 56 56 Greatest Overweight (x) 28 | . . . 9 1 2 10 10 9 3 2 28 Average Overweight (x) 1 | . . . 1 1 1 7 2 1 1 2 2 Largest Inventory Capacity 25 | 8 15 15 15 15 25 25 25 25 25 25 25 Average Capacity 20 | 7 10 15 15 15 20 25 25 25 25 25 25 Most Carried 25 | 2 8 7 15 15 17 17 25 25 25 25 25 Average Carried 17 | 1 5 5 12 14 15 17 19 24 24 24 24 Final Capacity 25 | 8 15 15 15 15 25 25 25 25 25 25 25 Final Carried 25 | 2 5 7 15 14 17 17 25 25 25 25 24 Class Distribution -------------------- 46% | Mutant 35% | Scavenger-Mutant 18% | Hacker-Mutant Dominant Class ---------------- Mutant | -10/Materials Mutant | -10/Mines Mutant | -9/Materials Mutant | -9/Mines Mutant | -9/Exiles Mutant | -8/Mines Scavenger-Mutant | -8/Materials Scavenger-Mutant | -8/Garrison Hacker-Mutant | -7/Factory Hacker-Mutant | -7/Lower Caves Hacker-Mutant | -7/Lower Caves Resources | -11 -10 -10 -9 -9 -9 -8 -8 -8 -7 -7 -7 ----------- Run | Jun Mat Min Mat Min Exi Min Mat Gar Fac Low Low Matter Collected 3677 | 206 325 52 1080 81 . 43 1014 412 244 188 32 Remotely . | . . . . . . . . . . . . Salvage Created 4627 | . 584 49 1318 147 . 81 1431 391 183 237 206 Parts 265 | . 34 5 77 16 . 3 81 23 13 8 5 Haulers Intercepted 8 | . . . 5 . . . 3 . . . . Recyclers Shooed 3 | . . . 3 . . . . . . . . Parts Field Recycled . | . . . . . . . . . . . . Retrieved Matter . | . . . . . . . . . . . . Parts Self-Destructed 12 | . . . . . . . . . . 5 7 Prevented . | . . . . . . . . . . . . Kills | -11 -10 -10 -9 -9 -9 -8 -8 -8 -7 -7 -7 ------- Run | Jun Mat Min Mat Min Exi Min Mat Gar Fac Low Low Combat Hostiles Destroyed 108 | . 15 3 22 6 . 3 30 15 2 7 5 Guns 60 | . 11 3 12 4 . . 21 9 . . . Cannons 15 | . . . 4 2 . . 1 3 2 1 2 AOE 33 | . 4 . 6 . . 3 8 3 . 6 3 Classes Destroyed 14 | . 6 . 4 . . . 2 1 . . 1 Worker 14 | . 1 . 5 . . . 7 . 1 . . Builder 4 | . . . 2 . . . 2 . . . . Hauler 8 | . . . 5 . . . 3 . . . . Recycler 5 | . . . 4 . . . . . 1 . . Mechanic 2 | . 1 . 1 . . . . . . . . Operator 4 | . 2 . 1 . . . 1 . . . . Watcher 7 | . 3 . 4 . . . . . . . . Swarmer 31 | . 6 3 9 3 . . 3 7 . . . Grunt 44 | . 9 . 5 3 . 3 17 2 1 3 1 Brawler 3 | . . . . . . . 1 . . . 2 Duelist 2 | . . . . . . . . . . . 2 Sentry 21 | . . . 8 . . . 7 5 1 . . Specialist 1 | . . . . . . . . 1 . . . Hunter 2 | . . . . . . . 2 . . . . Thug 4 | . . . . . . . . . . 4 . Best Kill Streak 6 | . 4 3 6 3 . 3 6 4 1 4 5 Combat Bots Only 5 | . 3 3 4 3 . 3 4 4 1 4 5 Max Kills in Single Turn 3 | . 3 1 3 1 . 2 2 3 1 2 1 Gunslinging . | . . . . . . . . . . . . Exploded 2 | . 2 . 2 . . 2 2 2 . 2 1 Melee . | . . . . . . . . . . . . Uniques/NPCs Destroyed . | . . . . . . . . . . . . Combat | -11 -10 -10 -9 -9 -9 -8 -8 -8 -7 -7 -7 -------- Run | Jun Mat Min Mat Min Exi Min Mat Gar Fac Low Low Damage Taken 7283 | . 487 111 1668 106 . 219 1798 756 299 583 1256 Core 1478 | . 104 17 322 12 . . 275 47 74 132 495 Absorbed by Shields 223 | . . . . . . . 223 . . . . Redirected to Shielding 40 | . . . . . . . . 40 . . . Regen/Repaired (Parts) 178 | . . . . . . . 178 . . . . Core Remaining (%) 52 | 100 . 51 . . . 16 . 41 . . . Volleys Fired 396 | 3 60 13 124 9 . 8 113 25 12 15 14 Largest 2 | 2 2 2 2 2 . 2 2 2 2 2 2 Hottest 159 | 60 60 40 69 62 . 62 100 98 159 159 120 Shots Fired 742 | 6 119 26 236 18 . 10 217 50 22 19 19 Gun 563 | 6 119 26 195 9 . 4 161 35 8 . . Cannon 129 | . . . 34 9 . 2 40 8 12 11 13 Launcher 50 | . . . 7 . . 4 16 7 2 8 6 Special . | . . . . . . . . . . . . Kinetic 555 | 3 86 26 229 18 . 6 146 29 8 1 3 Thermal 90 | . . . . . . . 55 14 4 7 10 Explosive 50 | . . . 7 . . 4 16 7 2 8 6 Electromagnetic 47 | 3 33 . . . . . . . 8 3 . Robot Hit Streak 27 | 6 15 7 15 5 . 8 14 23 27 5 4 Robot Miss Streak 6 | . 6 2 5 2 . 1 3 3 1 3 3 Penetration Max . | . . . . . . . . . . . . Secondary Targets 6 | . 1 . 2 . . . 3 . . . . Max Gunslinging Chain 1 | . 1 . 1 . . . 1 . . . . Shots Hit Robots 478 | 6 71 15 137 10 . 8 161 34 17 10 9 Core Hits 280 | 1 32 5 66 7 . 10 92 24 10 15 18 Critical Kills 3 | . 2 . . . . . 1 . . . . Critical Parts Destroyed . | . . . . . . . . . . . . Critical Strikes 11 | . 3 . . . . . 7 . . . 1 Burn 5 | . . . . . . . 5 . . . . Destroy 2 | . 2 . . . . . . . . . . Blast 2 | . . . . . . . 1 . . . 1 Corrupt 1 | . 1 . . . . . . . . . . Smash 1 | . . . . . . . 1 . . . . Melee Attacks 4 | . . . . . . . 4 . . . . Impact 4 | . . . . . . . 4 . . . . Slashing . | . . . . . . . . . . . . Piercing . | . . . . . . . . . . . . Sneak Attacks 1 | . . . . . . . 1 . . . . Combat Hostiles . | . . . . . . . . . . . . Follow-up Attacks . | . . . . . . . . . . . . Damage Inflicted 11468 | 76 1146 103 2705 198 . 347 3709 767 454 1017 946 Guns 5549 | 75 886 103 1601 117 . 61 2163 402 141 . . Cannons 1973 | . . . 555 69 . 44 462 152 200 253 238 Explosions 3721 | . 250 . 522 . . 242 961 213 61 764 708 Melee 113 | . . . . . . . 113 . . . . Ramming 112 | 1 10 . 27 12 . . 10 . 52 . . Kinetic 5421 | 37 571 103 2156 186 . 105 1725 314 141 31 52 Thermal 1817 | . 250 . . . . . 900 240 103 138 186 Explosive 3319 | . . . 522 . . 242 809 213 61 764 708 Electromagnetic 686 | 38 315 . . . . . 152 . 97 84 . Impact 113 | . . . . . . . 113 . . . . Slashing . | . . . . . . . . . . . . Piercing . | . . . . . . . . . . . . Highest Corruption 2 | . 1 1 2 2 2 2 . . 1 1 1 Average Corruption 1 | . 1 1 2 2 2 2 . . 1 1 1 Corruption Purged . | . . . . . . . . . . . . Corruption Blocked . | . . . . . . . . . . . . Effects 62 | . 12 3 11 10 7 5 . . 7 6 1 Message Errors 18 | . 5 1 6 2 2 . . . . 2 . Matter Fused 14 | . 2 1 1 3 1 . . . 4 2 . Heat Flow Errors 10 | . 2 1 1 1 1 3 . . 1 . . Energy Discharges 6 | . 2 . 1 1 1 . . . 1 . . Parts Fused 1 | . . . . . . . . . . 1 . Data Loss (minor) 7 | . 1 . 2 2 1 . . . . 1 . Data Loss (major) 3 | . . . . 1 1 1 . . . . . Alerts 1 | . . . . . . . . . 1 . . Weapon Failures 2 | . . . . . . 1 . . . . 1 Overload Shots . | . . . . . . . . . . . . Overflow Damage 102 | . 31 . 14 . . 2 7 . 18 19 11 Projectiles 24 | . . . . . . . . . 18 . 6 Explosions 78 | . 31 . 14 . . 2 7 . . 19 5 Melee . | . . . . . . . . . . . . Knockbacks 8 | . . . 1 . . 2 4 . 1 . . Impact 1 | . . . . . . . . . 1 . . Kinetic 7 | . . . 1 . . 2 4 . . . . Secondary . | . . . . . . . . . . . . Self-Inflicted Damage 474 | . 34 . 39 . . 4 89 50 18 147 93 Shots 19 | . 1 . 2 . . 1 3 3 . 7 2 Rammed 17 | 1 3 . 5 3 . . 2 . 3 . . Targets Rammed 19 | 1 3 . 6 3 . . 3 . 3 . . Kicked . | . . . . . . . . . . . . Crushed 2 | . . . 1 . . . 1 . . . . Highest Temperature 587 | . 283 170 179 208 198 180 423 198 251 361 587 Average Temperature 81 | . 90 86 27 61 103 78 86 70 58 125 362 Received Heat Transfer 2076 | . 222 . 435 60 . 117 657 135 9 234 207 Effects 17 | . . . . . . . . . . 1 16 Shutdowns 1 | . . . . . . . . . . . 1 Energy Bleed 3 | . . . . . . . . . . 1 2 Interference 2 | . . . . . . . . . . . 2 Short Circuit 1 | . . . . . . . . . . . 1 Damage (minor) 2 | . . . . . . . . . . . 2 Damage (major) 6 | . . . . . . . . . . . 6 Damage (core) 2 | . . . . . . . . . . . 2 Siege Activations . | . . . . . . . . . . . . Robots Corrupted 1 | . 1 . . . . . . . . . . Combat Hostiles . | . . . . . . . . . . . . Parts Fried 4 | . 4 . . . . . . . . . . Impact Corruptions . | . . . . . . . . . . . . Robots Melted . | . . . . . . . . . . . . Combat Hostiles . | . . . . . . . . . . . . Parts Melted 4 | . . . . . . . 2 2 . . . Heat Transferred 3124 | . 350 . . . . . 1961 370 111 148 184 Parts Sabotaged . | . . . . . . . . . . . . Parts Stolen . | . . . . . . . . . . . . Parts Stripped . | . . . . . . . . . . . . Power Chain Reactions 3 | . 3 . . . . . . . . . . Missiles Intercepted . | . . . . . . . . . . . . Alert | -11 -10 -10 -9 -9 -9 -8 -8 -8 -7 -7 -7 ------- Run | Jun Mat Min Mat Min Exi Min Mat Gar Fac Low Low Peak Influence 1222 | . 322 126 355 130 . 113 342 1222 918 . . Initial 641 | . . 36 . 113 . . 43 222 641 . . Average 334 | . 150 51 202 92 . 109 172 724 612 . . Maximum Alert Level 4 | . 1 . 1 . . . 1 4 3 . . Low Security (%) 42 | 100 73 100 38 100 . 100 59 . . . . Level 1 28 | . 26 . 61 . . . 40 20 10 . . Level 2 13 | . . . . . . . . 18 59 . . Level 3 14 | . . . . . . . . 52 29 . . Level 4 1 | . . . . . . . . 8 . . . Level 5 . | . . . . . . . . . . . . High Security . | . . . . . . . . . . . . Max Security . | . . . . . . . . . . . . Squads Dispatched 15 | . 4 . 1 . . . 4 . 5 . 1 Investigation 5 | . 2 . . . . . 2 . 1 . . Extermination 3 | . . . . . . . . . 3 . . Reinforcement 6 | . 2 . 1 . . . 2 . 1 . . Assault 1 | . . . . . . . . . . . 1 Garrison . | . . . . . . . . . . . . Intercept . | . . . . . . . . . . . . Searches Triggered . | . . . . . . . . . . . . Construction Impeded 3 | . . . 1 . . . 1 . 1 . . Haulers Reinforced . | . . . . . . . . . . . . Active Scanning Responses . | . . . . . . . . . . . . Cargo Convoy Interrupts . | . . . . . . . . . . . . Stealth | -11 -10 -10 -9 -9 -9 -8 -8 -8 -7 -7 -7 --------- Run | Jun Mat Min Mat Min Exi Min Mat Gar Fac Low Low Distress Signals 9 | . 2 . 4 . . . 3 . . . . Communications Jammed . | . . . . . . . . . . . . Distress Signals . | . . . . . . . . . . . . Times Spotted 170 | . 27 4 38 6 . 3 43 20 7 10 12 Peak Tracking Total 7 | . 5 3 7 3 . 3 4 5 2 4 7 Tactical Retreats 3 | . 1 1 . . . . 1 . . . . Traps | -11 -10 -10 -9 -9 -9 -8 -8 -8 -7 -7 -7 ------- Run | Jun Mat Min Mat Min Exi Min Mat Gar Fac Low Low Traps Triggered 14 | . 2 . 2 . . . 3 4 3 . . Indirectly . | . . . . . . . . . . . . Trap Hack Attempts . | . . . . . . . . . . . . Triggered . | . . . . . . . . . . . . Disarmed . | . . . . . . . . . . . . Reprogrammed . | . . . . . . . . . . . . Reused . | . . . . . . . . . . . . Traps Extracted . | . . . . . . . . . . . . Installed . | . . . . . . . . . . . . Triggered . | . . . . . . . . . . . . Machines | -11 -10 -10 -9 -9 -9 -8 -8 -8 -7 -7 -7 ---------- Run | Jun Mat Min Mat Min Exi Min Mat Gar Fac Low Low Machines Disabled 26 | . . . 2 . . 1 2 2 19 . . Max in Single Turn 2 | . . . 1 . . 1 2 2 . . . Phase Generator 1 | . . . . . . . . 1 . . . Machines Repaired . | . . . . . . . . . . . . Machines Sabotaged . | . . . . . . . . . . . . Overloaded Fab Kills . | . . . . . . . . . . . . Hacking | -11 -10 -10 -9 -9 -9 -8 -8 -8 -7 -7 -7 --------- Run | Jun Mat Min Mat Min Exi Min Mat Gar Fac Low Low Machines Accessed 31 | . 7 1 7 . 1 . 5 4 4 2 . Terminals 21 | . 5 1 5 . . . 3 4 2 1 . Fabricators 2 | . . . . . . . . . 2 . . Repair Stations 1 | . . . . . . . 1 . . . . Recycling Units 3 | . 2 . 1 . . . . . . . . Scanalyzers 1 | . . . 1 . . . . . . . . Garrison Access 1 | . . . . . . . 1 . . . . Total Hacks 71 | . 17 2 19 . 1 . 15 6 9 2 . Successful 46 | . 11 1 14 . 1 . 7 3 7 2 . Failed 24 | . 5 1 5 . . . 8 3 2 . . Catastrophic 3 | . . . . . . . 1 1 1 . . Database Lockouts 1 | . 1 . . . . . . . . . . Manual 34 | . 14 . 13 . 1 . 1 . 5 . . Terminals 52 | . 15 2 15 . . . 7 6 6 1 . Fabricators 3 | . . . . . . . . . 3 . . Repair Stations 6 | . . . . . . . 6 . . . . Recycling Units 4 | . 2 . 2 . . . . . . . . Scanalyzers 2 | . . . 2 . . . . . . . . Garrison Access 2 | . . . . . . . 2 . . . . Terminal Hacks 22 | . 6 1 4 . 1 . 2 3 3 2 . Record 1 | . . . . . . . . . . 1 . Robot Analysis 5 | . 4 . 1 . . . . . . . . Prototype ID Bank 1 | . 1 . . . . . . . . . . Open Door 2 | . . . . . . . . 1 . 1 . Branch Access Points 2 | . . . 1 . . . . . 1 . . Alert Level 2 | . . . . . . . . . 2 . . Locate Traps 1 | . . . 1 . . . . . . . . Dispatch Records 1 | . 1 . . . . . . . . . . Hauler Manifests 1 | . . . 1 . . . . . . . . Zone Layout 3 | . . 1 . . . . 2 . . . . Garrison Registry 1 | . . . . . . . . 1 . . . Patrol Navigation 1 | . . . . . . . . 1 . . . EX-Prototype ID Bank 1 | . . . . . 1 . . . . . . Fabricator Hacks 3 | . . . . . . . . . 3 . . Network Status 1 | . . . . . . . . . 1 . . Build 2 | . . . . . . . . . 2 . . Repair Station Hacks 4 | . . . . . . . 4 . . . . Scan Component 2 | . . . . . . . 2 . . . . Repair 2 | . . . . . . . 2 . . . . Recycling Unit Hacks 1 | . . . 1 . . . . . . . . Retrieve Components 1 | . . . 1 . . . . . . . . Scanalyzer 2 | . . . 2 . . . . . . . . Insert Component 1 | . . . 1 . . . . . . . . Analyze 1 | . . . 1 . . . . . . . . Garrison Access Hacks 1 | . . . . . . . 1 . . . . Unlock Access 1 | . . . . . . . 1 . . . . Unauthorized Hacks 13 | . 5 . 7 . . . . . 1 . . Terminals 10 | . 3 . 6 . . . . . 1 . . Botnet 7 | . 2 . 4 . . . . . 1 . . Detonate 1 | . . . 1 . . . . . . . . Operators 2 | . 1 . 1 . . . . . . . . Fabricators . | . . . . . . . . . . . . Repair Stations . | . . . . . . . . . . . . Recycling Units 3 | . 2 . 1 . . . . . . . . Mask 1 | . . . 1 . . . . . . . . Tunnel 2 | . 2 . . . . . . . . . . Scanalyzers . | . . . . . . . . . . . . Garrison Access . | . . . . . . . . . . . . Data Cores Recovered . | . . . . . . . . . . . . Used . | . . . . . . . . . . . . Hacking Detections 17 | . 4 1 6 . . . 2 1 3 . . Full Trace Events 1 | . . . . . . . 1 . . . . Feedback Events . | . . . . . . . . . . . . Feedback Blocked . | . . . . . . . . . . . . Robot Schematics Acquired . | . . . . . . . . . . . . Robots Built . | . . . . . . . . . . . . Authchips . | . . . . . . . . . . . . Time . | . . . . . . . . . . . . Total Robot Build Rating . | . . . . . . . . . . . . Part Schematics Acquired 1 | . . . 1 . . . . . . . . Parts Built 3 | . . . . . . . . . 3 . . Authchips . | . . . . . . . . . . . . Time 152 | . . . . . . . . . 152 . . Total Part Build Rating 19 | . . . . . . . . . 19 . . Parts Repaired 2 | . . . . . . . 2 . . . . Time 64 | . . . . . . . 64 . . . . Parts Recycled . | . . . . . . . . . . . . Recycled Matter . | . . . . . . . . . . . . Retrieved Matter . | . . . . . . . . . . . . Retrieved Components 9 | . . . 9 . . . . . . . . Parts Scanalyzed 1 | . . . 1 . . . . . . . . Part Schematics Acquired 1 | . . . 1 . . . . . . . . Parts Damaged . | . . . . . . . . . . . . Bothacking | -11 -10 -10 -9 -9 -9 -8 -8 -8 -7 -7 -7 ------------ Run | Jun Mat Min Mat Min Exi Min Mat Gar Fac Low Low Used RIF Installer . | . . . . . . . . . . . . Robots Hacked . | . . . . . . . . . . . . Non-combat . | . . . . . . . . . . . . Combat . | . . . . . . . . . . . . Robot Hacks Applied . | . . . . . . . . . . . . Relay Couplers Released 3 | . . . . . . . . 3 . . . Programmers 3 | . . . . . . . . 3 . . . Fabnet Peak Effective % . | . . . . . . . . . . . . Robots Rewired 4 | . . . . . . . . 4 . . . Allies Hacked 1 | . . . . . . . . . 1 . . Hacks Repelled . | . . . . . . . . . . . . Allies | -11 -10 -10 -9 -9 -9 -8 -8 -8 -7 -7 -7 -------- Run | Jun Mat Min Mat Min Exi Min Mat Gar Fac Low Low Total Allies 7 | . . . . . . . . 4 3 . . Largest Group 5 | . . . . . . . . 4 5 3 . Highest-Rated Group 163 | . . . . . . . . 129 163 101 . Highest-Rated Ally 39 | . . . . . . . . 39 39 39 . Total Orders . | . . . . . . . . . . . . Ally Attacks 105 | . . . . . . . . 18 63 24 . Total Damage 2507 | . . . . . . . . 784 1341 382 . Kills 26 | . . . . . . . . 9 14 3 . Allies Corrupted . | . . . . . . . . . . . . Allies Melted . | . . . . . . . . . . . . Turrets Deployed 1 | . . . . . . . . 1 . . . Intel | -11 -10 -10 -9 -9 -9 -8 -8 -8 -7 -7 -7 ------- Run | Jun Mat Min Mat Min Exi Min Mat Gar Fac Low Low Robot Analysis Total 5 | . 4 . 1 . . . . . . . . Derelict Logs Recovered 4 | . . 2 . 1 . . . . . 1 . Drone Launches . | . . . . . . . . . . . . Drone Recoveries . | . . . . . . . . . . . . Exploration | -11 -10 -10 -9 -9 -9 -8 -8 -8 -7 -7 -7 ------------- Run | Jun Mat Min Mat Min Exi Min Mat Gar Fac Low Low Turns Passed 12954 | 98 1227 485 2133 785 586 363 2380 2125 1840 855 77 Spaces Moved 5887 | 50 526 281 1123 312 210 131 735 925 949 614 31 Core 4 | 2 . . 1 . . . . . . . 1 Treads 3471 | 48 526 281 400 312 210 46 490 677 481 . . Legs 3 | . . . . . . . 3 . . . . Wheels 2409 | . . . 722 . . 85 242 248 468 614 30 Hover . | . . . . . . . . . . . . Flight . | . . . . . . . . . . . . Fastest Speed 50 | 50 160 160 95 240 240 230 140 140 115 130 130 Average Speed 187 | 155 160 160 149 240 278 261 240 212 181 130 172 Slowest Speed 1450 | 160 160 160 500 240 320 320 680 236 236 130 1450 Overloaded Moves . | . . . . . . . . . . . . Propulsion Burnouts . | . . . . . . . . . . . . Robots Hopped . | . . . . . . . . . . . . Cave-ins Triggered . | . . . . . . . . . . . . Exploration Rate (%) 54 | 4 76 65 91 54 60 41 65 82 29 74 8 Regions Visited 11 Branch Regions 6 Pre-discovered Areas 4 | . 2 . . 1 . . . . . 1 . Known Exits Taken 3 | . . . 1 . . . 1 . 1 . . Unknown Exits Taken 7 | 1 1 1 . 1 1 1 . . . 1 . Scrap Searched 6 | . . 1 . 1 . . . . . 3 1 Spaces Dug 3 | . . . . . . . 3 . . . . Terrain Destroyed 352 | . 16 . 45 . . 18 61 112 8 61 31 Melee 3 | . . . . . . . 3 . . . . Projectile 10 | . . . 1 . . . 1 . 1 2 5 AOE 339 | . 16 . 44 . . 18 57 112 7 59 26 Terrain Rammed . | . . . . . . . . . . . . Walls Destroyed . | . . . . . . . . . . . . Machines Disabled . | . . . . . . . . . . . . Actions | -11 -10 -10 -9 -9 -9 -8 -8 -8 -7 -7 -7 --------- Run | Jun Mat Min Mat Min Exi Min Mat Gar Fac Low Low Total 7088 | 61 795 295 1358 328 213 140 1107 1035 1049 661 46 Wait 455 | . 191 . 31 . . . 194 11 24 4 . Move 5875 | 49 525 280 1122 311 209 130 734 923 948 613 31 Hop . | . . . . . . . . . . . . Pick Up 75 | 2 5 1 22 2 3 . 11 5 15 9 . Fast Attach 55 | 6 4 . 13 . . . 19 6 6 1 . Attach 29 | . 2 . 8 1 . . 11 4 2 . 1 Detach 14 | . . . 1 . . . 8 2 2 1 . Swap 68 | . 3 1 15 . 1 2 9 17 13 7 . Drop 65 | . 2 . 16 2 . . 1 10 23 11 . Fire 396 | 3 60 13 124 9 . 8 113 25 12 15 14 Melee 4 | . . . . . . . 4 . . . . Ram 4 | . . . 3 . . . . . 1 . . Kick . | . . . . . . . . . . . . Crush 15 | 1 3 . 3 3 . . 3 . 2 . . Escape Stasis 12 | . . . . . . . . 12 . . . Rewire 21 | . . . . . . . . 20 1 . . Trap . | . . . . . . . . . . . . Miscellaneous . | . . . . . . . . . . . . Route ------- -11/Junkyard -10/Materials (discovered 3 exits: *Mat x2 / *Min) -10/Mines -9/Materials (discovered 5 exits: *Mat x3 / *Min x2) -9/Mines (discovered 4 exits: *Mat x2 / *Exi / [*Zio]) -9/Exiles (discovered 2 exits: [*Min x2]) -8/Mines -8/Materials (discovered 4 exits: *Fac x2 / [*Sto] / Gar) -8/Garrison (discovered 3 exits: *Fac x3) -7/Factory (discovered 2 exits: *Low x2) -7/Lower Caves -7/Lower Caves (discovered 1 exit: [*Fac]) History --------- Turn | Location | Event 29 | -11/Junkyard | Discovered new exit (range 14) 99 | -11/Junkyard | Entered Materials 259 | -10/Materials | Discovered new exit (range 10) 309 | -10/Materials | Build established: Mutant 574 | -10/Materials | Discovered new exit (range 5) 824 | -10/Materials | Central database locked down 864 | -10/Materials | Discovered new exit (range 15) 1326 | -10/Materials | Entered Mines 1742 | -10/Mines | Learned Materials non-interactive machine intel 1744 | -10/Mines | Learned Materials terminal intel 1771 | -10/Mines | Discovered new exit (range 16) 1811 | -10/Mines | Entered Materials 1811 | -9/Materials | Evolved 2 slots: Utility x2 1812 | -9/Materials | Loaded intel: 41 non-interactive machine locations 1813 | -9/Materials | Loaded intel: 12 terminal locations 2067 | -9/Materials | Identified exit to Mines 2499 | -9/Materials | Core integrity fell below 50% 2539 | -9/Materials | Lost 8 parts (1p1n2u4w) 3061 | -9/Materials | Discovered new exit (range 10) 3241 | -9/Materials | Core integrity fell below 20% 3283 | -9/Materials | Discovered new exit (range 13) 3672 | -9/Materials | Discovered new exit (range 16) 3944 | -9/Materials | Entered Mines 4350 | -9/Mines | Learned location of Zion (-7) 4535 | -9/Mines | Discovered new exit (range 7) 4640 | -9/Mines | Discovered new exit (range 3) 4692 | -9/Mines | A Derelict revealed a hidden shortcut to a safe place 4717 | -9/Mines | Deemed a non-threat by the Exiles lab entrance 4719 | -9/Mines | Discovered new exit (range 5) 4729 | -9/Mines | Entered Exiles 4768 | -9/Exiles | Discovered new exit (range 15) 4794 | -9/Exiles | Met 8R-AWN 4828 | -9/Exiles | Met EX-HEX 4893 | -9/Exiles | Met EX-BIN 4924 | -9/Exiles | Aligned with FarCom system 4926 | -9/Exiles | Given EX-Vault access code 4981 | -9/Exiles | Opened EX-Vault 4998 | -9/Exiles | Found Deploy-a-Sentry 5002 | -9/Exiles | Found Deploy-a-Sentry 5007 | -9/Exiles | Found Deploy-a-Sentry 5075 | -9/Exiles | Warned to stay clear of 0b10 Research branches 5174 | -9/Exiles | Met EX-DEC 5286 | -9/Exiles | Discovered new exit (range 10) 5315 | -9/Exiles | Left Exiles lab with Deploy-a-Sentry 5315 | -9/Exiles | Entered Mines 5579 | -8/Mines | Discovered new exit (range 9) 5678 | -8/Mines | Entered Materials 5678 | -8/Materials | Evolved 2 slots: Propulsion x2 5870 | -8/Materials | Lost 3 parts (1n1u1w) 6358 | -8/Materials | Build established: Scavenger-Mutant 6784 | -8/Materials | Discovered new exit (range 16) 6941 | -8/Materials | Lost 3 parts (2n1w) 7561 | -8/Materials | Discovered new exit (range 5) 7616 | -8/Materials | Repaired Adv. Treads 7643 | -8/Materials | Repaired Grenade Launcher 7677 | -8/Materials | Discovered new exit (range 16) 8056 | -8/Materials | Identified exit to Garrison 8058 | -8/Materials | Entered Garrison 8100 | -8/Garrison | Triggered checkpoint 8109 | -8/Garrison | DAS Turret deployed 8210 | -8/Garrison | Triggered checkpoint 8232 | -8/Garrison | Triggered checkpoint 8297 | -8/Garrison | Discovered new exit (range 10) 8486 | -8/Garrison | Triggered checkpoint 8578 | -8/Garrison | Discovered new exit (range 8) 8622 | -8/Garrison | Triggered checkpoint 8700 | -8/Garrison | Core integrity fell below 50% 8723 | -8/Garrison | Phase Generator disabled 9066 | -8/Garrison | Triggered checkpoint 9248 | -8/Garrison | Triggered checkpoint 9260 | -8/Garrison | Discovered new exit (range 11) 9678 | -8/Garrison | Discovered new exit (range 30) 9678 | -8/Garrison | Discovered new exit (range 24) 9678 | -8/Garrison | Discovered new exit (range 85) 9716 | -8/Garrison | Triggered checkpoint 9955 | -8/Garrison | Attempted to access garrison exit controls, blocked by remote lockdown 9986 | -8/Garrison | Triggered checkpoint 10183 | -8/Garrison | Entered Factory 10183 | -7/Factory | Accompanied by 4 allies 10183 | -7/Factory | Evolved 2 slots: Utility x2 11103 | -7/Factory | Fabricated Hvy. Disruptor Cannon? 11147 | -7/Factory | Build established: Hacker-Mutant 11175 | -7/Factory | P-60 Hacker assimilated allied FN-ARK(b) 11324 | -7/Factory | Fabricated Hvy. Phase Cannon (x2) 11375 | -7/Factory | Allied Derelicts emerged from ambush trap array 11887 | -7/Factory | Discovered new exit (range 5) 11973 | -7/Factory | Identified exit to Lower Caves 12023 | -7/Factory | Entered Lower Caves 12023 | -7/Lower Caves | Accompanied by 3 allies 12043 | -7/Lower Caves | Met a Warlord Commander 12044 | -7/Lower Caves | Learned location of Warlord (-5) 12050 | -7/Lower Caves | Found Encrypted Comm Array 12672 | -7/Lower Caves | Learned Factory garrison access intel 12766 | -7/Lower Caves | Ambushed by wild Derelicts 12874 | -7/Lower Caves | Discovered new exit (range 4) 12878 | -7/Lower Caves | Entered another Lower Caves area 12889 | -7/Lower Caves | Encountered a Warlord checkpoint 12889 | -7/Lower Caves | Discovered new exit (range 12) 12932 | -7/Lower Caves | Attracted the attention of an 0b10 outpost 12943 | -7/Lower Caves | Core integrity fell below 50% 12950 | -7/Lower Caves | Core integrity fell below 20% 12955 | -7/Lower Caves | Destroyed by G-47 Trooper with Particle Gun Last Messages --------------- 12945_ Overheating: Huge Storage Unit damaged (-350). 12945_ Overheating: Core Analyzer damaged (-3). 12945_ Mni. Grenade Launcher destroyed. 12946_ Hvy. Phase Cannon destroyed. 12946_ L-41 Fighter Carbon-fiber Leg blasted off. 12948_ Overheating: Rnf. Deuterium Engine damaged (-25). 12948_ The unstable cave ceiling collapses. 12948_ Penetrated by Slug. 12948_ Destroyed Imp. Deuterium Engine. 12948_ L-41 Fighter destroyed. 12949_ Acquired 16 matter. 12949_ Rnf. Deuterium Engine destroyed. 12950_ Overheating: Core damaged (-70). 12951_ Penetrated by Slug. 12952_ Gauss Cannon broken. 12952_ Overheating: Short circuit. 12954_ Overheating: Energy bleed (-10). 12955_ Overheating: Hacking Suite damaged (-6). 12955_ Overheating: Huge Storage Unit damaged (-26). 12955_ Overheating: Broken Gauss Cannon damaged (-10). Map ----- +----------------------------------------------------+ | ?????????????????????????????????????????????????? | | ?????????????????????????????????????????????????? | | ?????????????????????????????????????????????????? | | ?????????????????????????????????????????????????? | | ?????????????????????????????????????????????????? | | ?????????????????????????????????????????????????? | | ?????????????????????????????????????????????????? | | ????????????????????##??????##???????????????????? | | ???????????????????# ?????? ???????????????????? | | ???????????????????# ######?# ???????????????????? | | ???????????????????# # # ?# #??????????????????? | | ???????????????????# ? ?# #??????????????????? | | ???????????????????# $ ? ?# #??????????????????? | | ??????????????????## ? "# #???? ?????????????? | | ?????????????????## # "# #??# ??????????????? | | ????????????????## % #bg % "# ###;#########??????? | | ?????????# ###